fUSD/lending_fUSD_20250513
["ID","MTS","AMOUNT","RATE_DAILY","PERIOD"]
[360974183,1747173044712,-400.0,0.0001098,2]
[360974184,1747173044722,-400.0,0.0001098,2]
[360974185,1747173044731,-400.0,0.0001098,2]
[360974186,1747173044741,-880.7,0.0001098,2]
[360974187,1747173044750,-400.0,0.0001098,2]
[360974188,1747173044759,-400.0,0.0001098,2]
[360974189,1747173044769,-400.0,0.0001098,2]
[360974190,1747173044778,-400.0,0.0001098,2]
[360974191,1747173044789,-400.0,0.0001098,2]
[360974192,1747173044798,-183.34079437,0.0001098,2]
[360974193,1747173044808,-400.0,0.0001098,2]
[360974194,1747173044817,-400.0,0.0001098,2]
[360974195,1747173044827,-409.93360323,0.0001098,2]
[360974196,1747173044837,-400.0,0.0001098,2]
[360974197,1747173044846,-400.0,0.0001098,2]
[360974198,1747173044856,-400.0,0.0001098,2]
[360974199,1747173044865,-400.0,0.0001098,2]
[360974200,1747173044875,-400.0,0.0001098,2]
[360974201,1747173044884,-500.69662033,0.0001098,2]
[360974202,1747173044893,-400.0,0.0001098,2]
[360974203,1747173044904,-400.0,0.0001098,2]
[360974204,1747173044913,-545.01436811,0.0001098,2]
[360974205,1747173044922,-400.0,0.0001098,2]
[360974206,1747173044932,-400.0,0.0001098,2]
[360974207,1747173044942,-400.0,0.0001098,2]
[360974208,1747173044952,-400.0,0.0001098,2]
[360974209,1747173044962,-151.0,0.0001098,2]
[360974210,1747173044972,-151.0,0.0001098,2]
[360974211,1747173044982,-151.0,0.0001098,2]
[360974212,1747173044992,-400.0,0.0001098,2]
[360974213,1747173045002,-446.35,0.0001098,2]
[360974214,1747173045012,-151.0,0.0001098,2]
[360974215,1747173045021,-400.0,0.0001098,2]
[360974216,1747173045030,-151.0,0.0001098,2]
[360974217,1747173045040,-186.693732,0.0001098,2]
[360974218,1747173045049,-151.0,0.0001098,2]
[360974219,1747173045058,-151.0,0.0001098,2]
[360974220,1747173045068,-151.0,0.0001098,2]
[360974221,1747173045078,-400.0,0.0001098,2]
[360974222,1747173045088,-151.0,0.0001098,2]
[360974223,1747173045099,-156.882408,0.0001098,2]
[360974224,1747173045109,-400.0,0.0001098,2]
[360974225,1747173045119,-198.16032316,0.0001098,2]
[360974226,1747173045128,-151.0,0.0001098,2]
[360974227,1747173045138,-151.0,0.0001098,2]
[360974228,1747173045147,-151.0,0.0001098,2]
[360974229,1747173045156,-566.35,0.0001098,2]
[360974230,1747173045166,-151.0,0.0001098,2]
[360974231,1747173045176,-400.0,0.0001098,2]
[360974232,1747173045186,-151.0,0.0001098,2]
[360974233,1747173045195,-169.89388,0.0001098,2]
[360974234,1747173045205,-169.89388,0.0001098,2]
[360974235,1747173045215,-151.0,0.0001098,2]
[360974236,1747173045224,-152.577407,0.0001098,2]
[360974237,1747173045234,-151.0,0.0001098,2]
[360974238,1747173045246,-151.0,0.0001098,2]
[360974239,1747173045256,-158.81663335,0.0001098,2]
[360974240,1747173045266,-111012.52472566,0.0001098,2]
[360974241,1747173045705,-268.61,0.000109,2]
[360974242,1747173045746,-4083.76761,0.000109,2]
[360974243,1747173045774,-5935.82843444,0.000109,2]
[360974244,1747173045783,-400.0,0.00010958,2]
[360974245,1747173045793,-151.0,0.0001098,2]
[360974246,1747173045802,-190164.29086381,0.0001098,2]
[360974247,1747173045814,-858.6849167,0.0001098,2]
[360974248,1747173045831,-14351.0,0.0001098,2]
[360974251,1747173046454,-500.0,0.0001098,2]
[360974252,1747173046476,-49652.48015733,0.0001098,2]
[360974253,1747173046504,-449.68168323,0.0001098,2]
[360974254,1747173046515,-428.89054298,0.0001098,2]
[360974255,1747173046525,-771.55623,0.0001098,2]
[360974256,1747173046536,-714.413271,0.0001098,2]
[360974257,1747173046559,-1143.17,0.0001098,2]
[360974258,1747173046585,-33490.21234996,0.0001098,2]
[360974259,1747173161249,-2201.13538668,0.0001421,7]
[360974260,1747173187388,-630.0,0.0001926,17]
[360974261,1747173198147,-1421.05568255,0.0001926,17]
[360974262,1747173278946,-2000.0,0.00019232,12]
[360974263,1747173294360,1000.0,0.00025,60]
[360974264,1747173322956,1000.0,0.0002,30]
[360974265,1747173424054,-357.65259513,9.992e-05,2]
[360974266,1747173465961,-152.0,9.942e-05,2]
[360974267,1747173468563,-169.41137241,9.942e-05,2]
[360974268,1747173473602,-330.58862759,9.942e-05,2]
[360974269,1747173476820,-277.00028035,9.942e-05,2]
[360974270,1747173479100,-11.44487165,9.942e-05,2]
[360974271,1747173479136,-16.85740487,9.992e-05,2]
[360974272,1747173483895,-194.69744313,9.967e-05,2]
[360974273,1747173485831,-5.30255687,9.967e-05,2]
[360974275,1747173684378,-246.65601674,9.955e-05,2]
[360974276,1747173686454,-223.8513814,9.955e-05,2]
[360974277,1747173689320,-159.76,9.955e-05,2]
[360974278,1747173692222,-212.89363672,9.955e-05,2]
[360974279,1747173695591,-151.53640827,9.955e-05,2]
[360974280,1747173702385,-5.30255687,9.955e-05,2]
[360974281,1747173716469,-170.14529803,0.0001,2]
[360974282,1747173718014,-279.85470197,0.0001,2]
[360974283,1747173768560,-233.27441895,9.955e-05,2]
[360974284,1747173771848,-216.23481153,9.955e-05,2]
[360974285,1747173775136,-245.46518847,9.955e-05,2]
[360974286,1747173777834,-163.1120185,9.955e-05,2]
[360974287,1747173781067,-324.21857132,9.955e-05,2]
[360974288,1747173784265,-176.93752118,9.954e-05,2]
[360974289,1747173786849,-123.06247882,9.954e-05,2]
[360974290,1747173786885,-69.726013,9.955e-05,2]
[360974291,1747173789579,-309.49940545,9.955e-05,2]
[360974292,1747173791198,-428.48285673,9.955e-05,2]
[360974293,1747173792790,-243.39844704,9.955e-05,2]
[360974294,1747173794279,-266.41268796,9.955e-05,2]
[360974295,1747173796010,-161.7,9.942e-05,2]
[360974296,1747173799532,-0.74,9.942e-05,2]
[360974297,1747173799568,-223.25108954,9.955e-05,2]
[360974298,1747173801728,-209.3076481,9.955e-05,2]
[360974299,1747173806518,-333.85787659,9.955e-05,2]
[360974301,1747173810886,-232.84338577,9.955e-05,2]
[360974303,1747173812450,-245.68035737,9.955e-05,2]
[360974305,1747173815083,-185.54054918,9.955e-05,2]
[360974306,1747173816629,-230.41762075,9.945e-05,2]
[360974308,1747173819986,-178.50237925,9.945e-05,2]
[360974309,1747173820020,-104.43223545,9.955e-05,2]
[360974310,1747173820678,-10000.0,9.955e-05,2]
[360974312,1747173821894,-9865.26243905,9.955e-05,2]
[360974343,1747174151213,134.73756095,8.219e-05,2]
[360974344,1747174151239,1208.19243905,8.219e-05,2]
[360974393,1747174231839,-200.0,0.00010114,2]
[360974394,1747174231850,-200.0,0.00010119,2]
[360974395,1747174231860,-200.0,0.00010169,2]
[360974396,1747174231870,-500.0,0.000102,2]
[360974397,1747174231880,-500.0,0.000102,2]
[360974398,1747174231890,-150.0,0.00010201,2]
[360974399,1747174231899,-300.0,0.00010201,2]
[360974400,1747174231909,-1200.0,0.00010201,2]
[360974401,1747174231920,-300.0,0.00010201,2]
[360974402,1747174231929,-1839.39694898,0.00010213,2]
[360974403,1747174231942,-224.79052952,0.00010213,2]
[360974404,1747174231953,-207.4,0.0001044,2]
[360974405,1747174231963,-1342.93,0.00010474,2]
[360974406,1747174231974,-2064.18747851,0.00010758,2]
[360974407,1747174231983,-500.0,0.00010767,2]
[360974408,1747174231994,-377.6973,0.00010858,2]
[360974409,1747174232003,-226.7228,0.00010858,2]
[360974410,1747174232014,-76.11222352,0.00010878,2]
[360974411,1747174232045,-1541.62827648,0.00010878,2]
[360974412,1747174232055,-1506.0269,0.0001088,2]
[360974413,1747174232065,-158.3845934,0.0001089,2]
[360974414,1747174232075,-196.22942527,0.00010899,2]
[360974415,1747174232084,-171.84949063,0.000109,2]
[360974416,1747174232094,-192.34921943,0.000109,2]
[360974417,1747174232104,-190.78567091,0.000109,2]
[360974418,1747174232113,-6978.16607962,0.000109,2]
[360974419,1747174232123,-326.68998466,0.000109,2]
[360974420,1747174232133,-428.69600817,0.000109,2]
[360974421,1747174232143,-151.0747425,0.00010944,2]
[360974422,1747174232154,-740.88059788,0.00010948,2]
[360974423,1747174232163,-151.0,0.00010951,2]
[360974424,1747174232173,-668.65185757,0.00010951,2]
[360974425,1747174232182,-287.61899177,0.00010951,2]
[360974426,1747174232192,-468.83,0.00010958,2]
[360974427,1747174232201,-400.0,0.00010958,2]
[360974428,1747174232211,-464.11,0.00010958,2]
[360974429,1747174232220,-400.0,0.00010958,2]
[360974430,1747174232230,-400.0,0.00010958,2]
[360974431,1747174232240,-400.0,0.00010958,2]
[360974432,1747174232249,-400.0,0.00010958,2]
[360974433,1747174232259,-400.0,0.00010958,2]
[360974434,1747174232270,-400.0,0.00010958,2]
[360974435,1747174232280,-400.0,0.00010958,2]
[360974436,1747174232290,-500.0,0.00010958,2]
[360974451,1747174232520,-400.0,0.00010958,2]
[360974452,1747174232539,-400.0,0.00010958,2]
[360974453,1747174232549,-400.0,0.00010958,2]
[360974454,1747174232558,-400.0,0.00010958,2]
[360974455,1747174232567,-400.0,0.00010958,2]
[360974456,1747174232577,-400.0,0.00010958,2]
[360974457,1747174232587,-400.0,0.00010958,2]
[360974458,1747174232597,-400.0,0.00010958,2]
[360974459,1747174232607,-756.68,0.00010958,2]
[360974460,1747174232617,-400.0,0.00010958,2]
[360974461,1747174232629,-400.0,0.00010958,2]
[360974462,1747174232638,-400.0,0.00010958,2]
[360974463,1747174232648,-400.0,0.00010958,2]
[360974464,1747174232657,-445.92,0.00010958,2]
[360974465,1747174232668,-469.24,0.00010958,2]
[360974466,1747174232679,-400.0,0.00010958,2]
[360974467,1747174232689,-400.0,0.00010958,2]
[360974468,1747174232700,-400.0,0.00010958,2]
[360974469,1747174232709,-400.0,0.00010958,2]
[360974470,1747174232719,-569.65,0.00010958,2]
[360974471,1747174232728,-542.13,0.00010958,2]
[360974472,1747174232738,-834.08445574,0.00010958,2]
[360974473,1747174232829,-500.0,0.000102,2]
[360974474,1747174232838,-500.0,0.000102,2]
[360974475,1747174232847,-500.0,0.000102,2]
[360974476,1747174232856,-206.48554426,0.00010958,2]
[360974477,1747174232865,-576.99,0.00010958,2]
[360974478,1747174232874,-682.39,0.00010958,2]
[360974479,1747174232884,-941.45,0.00010958,2]
[360974480,1747174232893,-454.17,0.00010958,2]
[360974481,1747174232902,-400.0,0.00010958,2]
[360974482,1747174232911,-456.14315574,0.00010958,2]
[360974483,1747174232946,-131.14684426,0.00010958,2]
[360974484,1747174232956,-1169.4,0.00010958,2]
[360974485,1747174232966,-255.10315535,0.00010958,2]
[360974486,1747174233036,-500.0,0.000102,2]
[360974487,1747174233046,-500.0,0.000102,2]
[360974488,1747174233056,-50.0,0.00010958,2]
[360974489,1747174233067,-739.489561,0.00010958,2]
[360974490,1747174233078,-554.23728365,0.00010958,2]
[360974491,1747174233087,-505.57,0.00010958,2]
[360974492,1747174233097,-393.22,0.00010958,2]
[360974493,1747174233106,-125.01380731,0.00010958,2]
[360974494,1747174233191,-500.0,0.000102,2]
[360974495,1747174233201,-500.0,0.000102,2]
[360974496,1747174233210,-343.95,0.00010958,2]
[360974497,1747174233222,-347.04619269,0.00010958,2]
[360974498,1747174233232,-419.12,0.00010958,2]
[360974499,1747174233241,-400.0,0.00010958,2]
[360974500,1747174233251,-400.0,0.00010958,2]
[360974501,1747174233261,-448.69,0.00010958,2]
[360974502,1747174233270,-475.4009108,0.00010958,2]
[360974503,1747174233279,-400.0,0.00010958,2]
[360974504,1747174233289,-400.0,0.00010958,2]
[360974505,1747174233300,-400.0,0.00010958,2]
[360974506,1747174233310,-446.76,0.00010958,2]
[360974507,1747174233319,-429.74765404,0.00010958,2]
[360974508,1747174237701,-500.0,0.000102,2]
[360974509,1747174237719,-500.0,0.000102,2]
[360974510,1747174237729,-500.0,0.000102,2]
[360974511,1747174237738,-171.96976103,0.000102,2]
[360974512,1747174237748,-500.0,0.000102,2]
[360974513,1747174237758,-500.0,0.000102,2]
[360974514,1747174237768,-301.76234596,0.00010958,2]
[360974515,1747174237777,-400.0,0.00010958,2]
[360974516,1747174237787,-400.0,0.00010958,2]
[360974517,1747174237798,-527.57,0.00010958,2]
[360974518,1747174237810,-829.76,0.00010958,2]
[360974519,1747174237820,-1195.5,0.00010958,2]
[360974520,1747174237829,-436.86307172,0.00010958,2]
[360974521,1747174237839,-400.0,0.00010958,2]
[360974522,1747174237849,-400.0,0.00010958,2]
[360974523,1747174237859,-682.24,0.00010958,2]
[360974524,1747174237869,-424.75496203,0.00010958,2]
[360974525,1747174237878,-400.0,0.00010958,2]
[360974526,1747174237888,-1203.35,0.00010958,2]
[360974527,1747174237897,-1018.13,0.00010958,2]
[360974528,1747174237907,-400.0,0.00010958,2]
[360974529,1747174237916,-442.53,0.00010958,2]
[360974530,1747174237925,-471.4,0.00010958,2]
[360974531,1747174237936,-1157.42,0.00010958,2]
[360974532,1747174237945,-652.15,0.00010958,2]
[360974533,1747174237956,-400.0,0.00010958,2]
[360974534,1747174237966,-584.29,0.00010958,2]
[360974535,1747174237975,-400.0,0.00010958,2]
[360974536,1747174237986,-413.35,0.00010958,2]
[360974537,1747174237995,-404.12,0.00010958,2]
[360974538,1747174238005,-400.0,0.00010958,2]
[360974539,1747174238014,-1489.84,0.00010958,2]
[360974540,1747174238023,-1061.83,0.00010958,2]
[360974541,1747174238034,-1728.86,0.00010958,2]
[360974542,1747174238043,-77.68544065,0.00010958,2]
[360974544,1747174238075,-1684.75455935,0.00010958,2]
[360974545,1747174238085,-97.28944065,0.00010958,2]
[360974546,1747174238104,-302.71055935,0.00010958,2]
[360974547,1747174238113,-212.84114248,0.00010958,2]
[360974553,1747174240348,-44.70790145,0.00010958,2]
[360974557,1747174240383,-495.5956815,0.00010958,2]
[360974559,1747174240394,-404.44,0.00010958,2]
[360974561,1747174240405,-418.95527457,0.00010958,2]
[360974563,1747174240415,-406.1126432,0.00010958,2]
[360974565,1747174240425,-1865.8320822,0.00010958,2]
[360974567,1747174240437,-1460.72000014,0.00010958,2]
[360974571,1747174240565,-709.64791766,0.00010958,2]
[360974572,1747174240574,-418.31,0.00010958,2]
[360974573,1747174240584,-400.0,0.00010958,2]
[360974574,1747174240593,-1566.41974171,0.00010958,2]
[360974575,1747174240605,-160.80025829,0.00010958,2]
[360974576,1747174240614,-1360.13533041,0.00010958,2]
[360974587,1747174243028,-503.26466959,0.00010958,2]
[360974588,1747174243038,-956.41535641,0.00010958,2]
[360974589,1747174243178,-55.06464359,0.00010958,2]
[360974590,1747174243188,-295.53003675,0.00010958,2]
[360974592,1747174245759,-104.46996325,0.00010958,2]
[360974593,1747174245768,-460.16,0.00010958,2]
[360974594,1747174245778,-400.0,0.00010958,2]
[360974595,1747174245788,-665.4,0.00010958,2]
[360974596,1747174245798,-570.22,0.00010958,2]
[360974597,1747174245809,-1194.99,0.00010958,2]
[360974598,1747174245818,-723.48,0.00010958,2]
[360974599,1747174245827,-673.68,0.00010958,2]
[360974600,1747174245837,-400.0,0.00010958,2]
[360974601,1747174245846,-174.49,0.00010969,2]
[360974602,1747174245855,-500.0,0.00010973,2]
[360974603,1747174245865,-500.0,0.00010973,2]
[360974604,1747174245875,-500.0,0.00010973,2]
[360974605,1747174245884,-500.0,0.00010973,2]
[360974606,1747174245894,-500.59663006,0.00010973,2]
[360974607,1747174245903,-500.0,0.00010973,2]
[360974608,1747174245914,-500.0,0.00010973,2]
[360974609,1747174245924,-500.0,0.00010973,2]
[360974610,1747174245934,-418.19172257,0.00010978,2]
[360974611,1747174245944,-400.0,0.00010978,2]
[360974612,1747174245953,-159.144313,0.00010978,2]
[360974613,1747174245962,-75.17737113,0.00010978,2]
[360974614,1747174245998,-1522.84354187,0.00010978,2]
[360974615,1747174246007,-304.984101,0.00010978,2]
[360974616,1747174246016,-290.21329116,0.00010978,2]
[360974617,1747174246025,-400.0,0.00010978,2]
[360974618,1747174246035,-457.35,0.00010978,2]
[360974619,1747174246044,-1386.90747353,0.00010978,2]
[360974620,1747174246142,-21.11609833,0.00010978,2]
[360974623,1747174246191,-72.35642814,0.00010978,2]
[360974625,1747174246201,-528.75,0.00010978,2]
[360974627,1747174246210,-400.0,0.00010978,2]
[360974629,1747174246220,-400.0,0.00010978,2]
[360974631,1747174246230,-400.0,0.00010978,2]
[360974633,1747174246239,-624.97,0.00010978,2]
[360974635,1747174246249,-400.0,0.00010978,2]
[360974637,1747174246258,-400.0,0.00010978,2]
[360974639,1747174246267,-400.0,0.00010978,2]
[360974641,1747174246277,-400.0,0.00010978,2]
[360974643,1747174246286,-400.0,0.00010978,2]
[360974645,1747174246296,-400.0,0.00010978,2]
[360974647,1747174246309,-400.0,0.00010978,2]
[360974649,1747174246319,-607.91,0.00010978,2]
[360974651,1747174246329,-400.0,0.00010978,2]
[360974653,1747174246339,-438.42,0.00010978,2]
[360974655,1747174246349,-400.0,0.00010978,2]
[360974657,1747174246358,-667.58460686,0.00010978,2]
[360974705,1747174246827,-416.25539314,0.00010978,2]
[360974708,1747174246848,-400.0,0.00010978,2]
[360974711,1747174246870,-400.0,0.00010978,2]
[360974714,1747174246893,-400.0,0.00010978,2]
[360974718,1747174246915,-295.45330686,0.00010978,2]
[360974942,1747174261450,-150.0,0.000101,2]
[360974944,1747174588702,-282.38670178,9.971e-05,2]
[360974945,1747174590344,-225.208019,9.971e-05,2]
[360974946,1747174592984,-231.62544956,9.971e-05,2]
[360974947,1747174595547,-177.7386183,9.97e-05,2]
[360974948,1747174597202,-206.38190142,9.97e-05,2]
[360974949,1747174598535,-115.87948028,9.97e-05,2]
[360974950,1747174598584,-43.16653144,9.97e-05,2]
[360974951,1747174598992,150.0,0.00013,5]
[360974952,1747174601289,-173.15398828,9.97e-05,2]
[360974953,1747174604666,-168.18210163,9.97e-05,2]
[360974954,1747174608584,-115.49737865,9.97e-05,2]
[360974955,1747174608629,-43.16653144,9.97e-05,2]
[360974956,1747174610253,-225.67989527,9.97e-05,2]
[360974957,1747174614090,-191.63481123,9.97e-05,2]
[360974958,1747174614122,-17.28700147,9.971e-05,2]
[360974959,1747174617268,-263.39531031,9.971e-05,2]
[360974960,1747174619016,-167.41426294,9.971e-05,2]
[360974961,1747174621754,-360.67283918,9.971e-05,2]
[360974962,1747174623327,-151.77041576,9.971e-05,2]
[360974963,1747174628139,150.0,0.0002549,120]
[360974964,1747174757332,-165.92258378,9.977e-05,2]
[360974965,1747174760034,-167.41426294,9.977e-05,2]
[360974966,1747174761609,-160.65013584,9.977e-05,2]
[360974967,1747174763257,-250.00546229,9.977e-05,2]
[360974968,1747174765932,-228.77891233,9.977e-05,2]
[360974969,1747174768779,-194.16816099,9.977e-05,2]
[360974970,1747174770955,-166.39732855,9.977e-05,2]
[360974971,1747174773835,-219.33475114,9.977e-05,2]
[360974972,1747174776177,-280.66524886,9.977e-05,2]
[360974973,1747174780971,-219.33475114,9.977e-05,2]
[360974974,1747174782654,-210.58106277,9.977e-05,2]
[360974975,1747174784745,-298.23322255,9.977e-05,2]
[360974976,1747174786409,-152.01808448,9.977e-05,2]
[360974977,1747174789421,-258.41018952,9.977e-05,2]
[360974978,1747174792189,-291.33850345,9.977e-05,2]
[360974979,1747174797759,-228.85556636,9.977e-05,2]
[360974980,1747174800187,-156.62299645,9.976e-05,2]
[360974981,1747174805010,-265.17721185,9.976e-05,2]
[360974982,1747174807246,-178.1997917,9.976e-05,2]
[360974983,1747174807278,-57.4073102,9.976e-05,2]
[360974984,1747174808312,-182.51621689,9.976e-05,2]
[360974985,1747174809943,-176.87046763,9.976e-05,2]
[360974986,1747174814582,-322.47637996,9.976e-05,2]
[360974987,1747174816686,-197.04853282,9.976e-05,2]
[360974988,1747174820544,-192.2924088,9.976e-05,2]
[360974989,1747174822082,-71.3886837,9.976e-05,2]
[360974990,1747174822117,-229.67875596,9.977e-05,2]
[360974991,1747174823728,-231.06477113,9.977e-05,2]
[360974992,1747174828727,-161.7,9.972e-05,2]
[360974993,1747174830298,-252.86038133,9.972e-05,2]
[360974994,1747174832010,-192.73622149,9.972e-05,2]
[360974995,1747174833712,-170.55339718,9.972e-05,2]
[360974996,1747174833753,-273.45743966,9.976e-05,2]
[360974997,1747174835839,-26.54256034,9.976e-05,2]
[360974998,1747174862208,-172.39,9.976e-05,2]
[360974999,1747174864287,-127.61,9.976e-05,2]
[360975000,1747174913197,-173.45743966,9.973e-05,2]
[360975001,1747174915675,-198.93256034,9.973e-05,2]
[360975002,1747174917827,-250.12694645,9.973e-05,2]
[360975003,1747174920289,-359.16790501,9.973e-05,2]
[360975004,1747175018602,-177.10134542,9.922e-05,2]
[360975005,1747175021295,-179.04751958,9.922e-05,2]
[360975006,1747175022837,-266.421135,9.922e-05,2]
[360975007,1747175026058,-295.20140833,9.922e-05,2]
[360975008,1747175027585,-231.55859167,9.922e-05,2]
[360975009,1747175029748,-298.02689455,9.922e-05,2]
[360975010,1747175032830,-214.13273447,9.922e-05,2]
[360975011,1747175036183,-301.63441014,9.922e-05,2]
[360975012,1747175038031,-150.74437484,9.922e-05,2]
[360975024,1747175285922,-204.46,9.955e-05,2]
[360975025,1747175285943,-18.31514854,9.973e-05,2]
[360975026,1747175285964,-200.0,9.974e-05,2]
[360975027,1747175286002,-162.2756931,9.975e-05,2]
[360975028,1747175286024,-1200.0,9.976e-05,2]
[360975029,1747175286046,-300.0,9.976e-05,2]
[360975030,1747175286068,-300.0,9.976e-05,2]
[360975031,1747175286091,-7614.94915836,9.977e-05,2]
[360975032,1747175286952,-10000.0,9.977e-05,2]
[360975033,1747175304569,-3580.081688,9.97e-05,2]
[360975034,1747175304594,-2332.19908756,9.977e-05,2]
[360975035,1747175317285,250.0,9.961e-05,2]
[360975046,1747175338027,500.0,9.975e-05,2]
[360975047,1747175338082,500.0,9.975e-05,2]
[360975048,1747175338154,150.0,9.975e-05,2]
[360975049,1747175338200,500.0,9.975e-05,2]
[360975050,1747175338249,500.0,9.975e-05,2]
[360975051,1747175338326,500.0,9.975e-05,2]
[360975052,1747175338369,500.0,9.975e-05,2]
[360975057,1747175352987,687.71922444,8.219e-05,2]
[360975058,1747175353011,564.37077556,8.219e-05,2]
[360975084,1747175432297,-1200.0,0.0001,2]
[360975085,1747175432312,-300.0,0.0001,2]
[360975086,1747175432326,-250.0,0.00010001,2]
[360975087,1747175432340,-200.0,0.00010001,2]
[360975088,1747175432355,-77.76,0.00010001,2]
[360975091,1747175432424,-5216.52804,0.00010001,2]
[360975093,1747175432475,-477.66512304,0.00010001,2]
[360975094,1747175432493,-898.46097204,0.00010001,2]
[360975096,1747175432526,-7551.30000012,0.00010001,2]
[360975098,1747175432550,-305.32,0.00010001,2]
[360975100,1747175432567,-6154.8569412,0.00010001,2]
[360975102,1747175434755,161.4219,0.00025499,120]
[360975104,1747175437970,-1362.7601557,0.00010001,2]
[360975105,1747175437980,-23.51889727,0.000101,2]
[360975106,1747175437989,-207.4,0.0001044,2]
[360975107,1747175437999,-184.27481305,0.00010473,2]
[360975108,1747175438008,-181.83967602,0.00010473,2]
[360975109,1747175438018,-177.70589044,0.00010473,2]
[360975110,1747175438031,-1252.09,0.00010474,2]
[360975111,1747175438040,-500.0,0.00010685,2]
[360975112,1747175438049,-1549.0,0.00010744,2]
[360975113,1747175438058,-1525.6898,0.0001087,2]
[360975114,1747175438067,-158.3845934,0.0001087,2]
[360975115,1747175438076,-190.5315592,0.0001087,2]
[360975116,1747175438086,-190.53155918,0.00010871,2]
[360975117,1747175438095,-190.53155918,0.00010871,2]
[360975118,1747175438104,-173.87877956,0.00010872,2]
[360975119,1747175438114,-150.0,0.00010899,2]
[360975120,1747175438125,-150.8502291,0.000109,2]
[360975121,1747175438134,-346.48591434,0.000109,2]
[360975122,1747175438147,-1969.587,0.00010944,2]
[360975123,1747175438157,-182.55124601,0.00010944,2]
[360975124,1747175438166,-151.5909245,0.00010944,2]
[360975125,1747175438176,-250.0,0.00010951,2]
[360975126,1747175438186,-200.0,0.00010951,2]
[360975127,1747175438195,-200.0,0.00010951,2]
[360975128,1747175438205,-1000.0,0.00010956,2]
[360975129,1747175438214,-17296.33057261,0.00010957,2]
[360975130,1747175438226,-5499.39,0.00010957,2]
[360975131,1747175438268,-1079.40288005,0.00010957,2]
[360975132,1747175438278,-30.77218421,0.00010957,2]
[360975133,1747175438342,-0.00304836,0.00010957,2]
[360975134,1747175438359,-282.6119774,0.00010957,2]
[360975135,1747175438405,-267.9575268,0.00010957,2]
[360975136,1747175438415,-151.0,0.00010963,2]
[360975137,1747175438424,-155.0,0.00010963,2]
[360975138,1747175438434,-668.65185757,0.00010963,2]
[360975139,1747175438444,-287.61899177,0.00010963,2]
[360975140,1747175438454,-304.984101,0.00010969,2]
[360975141,1747175438465,-400.0,0.00010969,2]
[360975142,1747175438474,-1794.67,0.00010969,2]
[360975143,1747175438484,-400.0,0.00010969,2]
[360975144,1747175438494,-1598.020913,0.00010969,2]
[360975145,1747175438503,-159.144313,0.00010969,2]
[360975146,1747175438515,-438.29,0.00010969,2]
[360975147,1747175438524,-400.0,0.00010969,2]
[360975148,1747175438534,-1418.69,0.00010969,2]
[360975149,1747175438544,-506.72,0.00010969,2]
[360975150,1747175438554,-400.0,0.00010969,2]
[360975152,1747175438563,-400.0,0.00010969,2]
[360975154,1747175438573,-400.0,0.00010969,2]
[360975156,1747175438582,-400.0,0.00010969,2]
[360975157,1747175438592,-752.91,0.00010969,2]
[360975158,1747175438602,-326.83702349,0.00010969,2]
[360975159,1747175438612,-400.0,0.00010969,2]
[360975160,1747175438622,-400.0,0.00010969,2]
[360975161,1747175438632,-509.13,0.00010969,2]
[360975162,1747175438642,-582.58,0.00010969,2]
[360975163,1747175438652,-420.15,0.00010969,2]
[360975164,1747175438662,-400.0,0.00010969,2]
[360975165,1747175438671,-458.3128735,0.00010969,2]
[360975166,1747175438683,-1015.68,0.00010969,2]
[360975168,1747175438693,-573.98,0.00010969,2]
[360975169,1747175438702,-400.0,0.00010969,2]
[360975170,1747175438712,-474.22300564,0.00010969,2]
[360975171,1747175438721,-400.0,0.00010969,2]